Cogmind - Beta 16 --- EXPLORER MODE // 2026.01.20 @ 12:31:37 Player: K.K.Y. Result: Destroyed by WV-ZYB(R) with Subdweller Machine Gun Performance ------------- Evolutions (0) 0 Regions Visited (3) 600 Robots Destroyed (35) 175 Value Destroyed (767) 767 Prototype IDs (12) 240 Alien Tech Used (0) 0 Bonus (-385) -385 TOTAL SCORE: 1397 Bonus ------- Follower Combat Kills 60 Friendly Fire -445 Cogmind --------- Core Integrity 0/250 Matter 300/300 Energy 100/100 System Corruption 0% Temperature Cool (9) Movement Core (200) Ox3 Location -10/Subcaves Parts ------- > --- POWER (1) -------- (None) > --- PROPULSION (2) --- (None) > --- UTILITY (3) ------ Improved Heat Sink Medium Storage Unit Structural Scanner > --- WEAPON (2) ------- (None) > --- INVENTORY (10) --- Improved Heat Sink High-capacity Storage Unit Huge Storage Unit Machine Analyzer Sensor Array Improved Terrain Scanner Light Armor Plating Mining Laser Multitool Flamer Peak State ------------ > --- POWER ------------ Light Angular Momentum Engine > --- PROPULSION ------- Light Treads Light Treads > --- UTILITY ---------- Improved Heat Sink Medium Storage Unit Sensor Array > --- WEAPON ----------- Beamcaster Beamcaster > --- INVENTORY -------- Light Treads Light Treads Improved Heat Sink High-capacity Storage Unit Huge Storage Unit Structural Scanner Improved Terrain Scanner Light Armor Plating Beam Rifle Mining Laser [Rating: 23] Favorites ----------- Power Light Angular Momentum Engine Engine Light Angular Momentum Engine Propulsion Light Treads Treads Light Treads Utility Medium Storage Unit Device Improved Heat Sink Storage Medium Storage Unit Weapon Beamcaster Energy Gun Beamcaster Ballistic Gun Assault Rifle Special Weapon Mining Laser Build | -11 -10 -10 -10 ------- Run | Yrd Mat Min Sub Slots Evolved 1 | . 1 . . Power . | . . . . Propulsion . | . . . . Utility 1 | . 1 . . Weapon . | . . . . Parts Attached 34 | 7 17 9 1 Power 3 | 1 1 1 . Engine 3 | 1 1 1 . Core . | . . . . Reactor . | . . . . Propulsion 11 | 2 6 2 1 Treads 11 | 2 6 2 1 Leg . | . . . . Wheel . | . . . . Hover . | . . . . Flight . | . . . . Utility 9 | 2 4 3 . Device 7 | 1 3 3 . Storage 2 | 1 1 . . Processor . | . . . . Hackware . | . . . . Protection . | . . . . Artifact . | . . . . Weapon 11 | 2 6 3 . Energy Gun 9 | . 6 3 . Energy Cannon . | . . . . Ballistic Gun 1 | 1 . . . Ballistic Cannon . | . . . . Launcher . | . . . . Special Weapon 1 | 1 . . . Impact Weapon . | . . . . Slashing Weapon . | . . . . Piercing Weapon . | . . . . Special Melee Weapon . | . . . . Unidentified Prototypes . | . . . . Parts Lost 8 | . 2 . 6 Power 2 | . 1 . 1 Propulsion 2 | . . . 2 Utility 1 | . . . 1 Weapon 3 | . 1 . 2 Highest Loss Streak 6 | . 1 . 6 To Critical Strikes . | . . . . Average Backups 8 | 1 7 9 9 Power . | . . . . Propulsion . | . . 2 . Utility 6 | 1 4 5 7 Weapon 1 | . 1 1 1 Tool/Special . | . . . . Unused Backups 10 | . 1 2 7 Power . | . . . . Propulsion 2 | . . 2 . Utility 6 | . 1 . 5 Weapon 1 | . . . 1 Tool/Special 1 | . . . 1 Average Slot Usage (%) 99 | . 97 100 99 Engine 11 | . 11 12 11 Treads 24 | . 25 25 24 Device 24 | . 22 25 25 Storage 12 | . 12 12 12 Energy Gun 23 | . 19 25 24 Special Weapon 1 | . 3 . . Peak Build Rating 23 | 7 12 23 23 Average Rating 17 | 4 9 18 22 On Entrance 10 | . 7 11 23 Avg Prop Armor Cover (%) . | . . . . Naked Turns . | . . . . Heaviest Build 47 | 17 47 31 31 Greatest Support 40 | 40 40 40 40 Greatest Overweight (x) 3 | 3 1 . 3 Average Overweight (x) . | . . . . Largest Inventory Capacity 20 | 10 20 10 10 Average Capacity 10 | 8 10 10 10 Most Carried 11 | 5 11 10 10 Average Carried 8 | 1 7 9 9 Final Capacity 10 | 10 10 10 10 Final Carried 10 | 3 10 10 10 Class Distribution -------------------- 59% | Hacker-Mutant 40% | Scavenger-Mutant Dominant Class ---------------- Hacker-Mutant | -10/Materials Hacker-Mutant | -10/Mines Scavenger-Mutant | -10/Subcaves Resources | -11 -10 -10 -10 ----------- Run | Yrd Mat Min Sub Matter Collected 621 | 264 197 140 20 Remotely . | . . . . Salvage Created 1260 | 112 706 260 182 Parts 62 | 7 31 17 7 Haulers Intercepted 2 | . 2 . . Recyclers Shooed . | . . . . Parts Field Recycled . | . . . . Retrieved Matter . | . . . . Parts Self-Destructed . | . . . . Prevented . | . . . . Parts Restored . | . . . . Kills | -11 -10 -10 -10 ------- Run | Yrd Mat Min Sub Combat Hostiles Destroyed 22 | . 14 4 4 Guns 21 | . 13 4 4 Classes Destroyed 8 | 2 5 . 1 Worker 2 | . 2 . . Tunneler 2 | 2 . . . Hauler 2 | . 2 . . Recycler 2 | 1 1 . . Watcher 3 | . 3 . . Swarmer 6 | . 4 2 . Grunt 12 | . 10 2 . Subdweller 4 | . . . 4 Thug 2 | . . 2 . Best Kill Streak 5 | 2 5 2 1 Combat Bots Only 4 | . 4 2 1 Max Kills in Single Turn 2 | 1 2 2 1 Gunslinging 1 | . 1 1 . Exploded . | . . . . Melee . | . . . . Uniques/NPCs Destroyed . | . . . . Combat | -11 -10 -10 -10 -------- Run | Yrd Mat Min Sub Hostile Shots Fired 153 | . 92 6 55 Missed 36 | . 24 . 12 Hits 117 | . 68 6 43 Projectile 117 | . 68 6 43 AOE 4 | . . . 4 Damage Taken 1340 | . 492 42 806 Core 255 | . 99 10 146 Absorbed by Shields . | . . . . Ignored by Resistances 807 | . 314 28 465 Core Remaining (%) 100 | 100 . . . Volleys Fired 94 | 10 46 13 25 Largest 2 | 1 2 2 2 Hottest 150 | 20 150 150 150 Shots Fired 175 | 10 90 26 49 Gun 169 | 10 84 26 49 Cannon . | . . . . Launcher . | . . . . Special 6 | . 6 . . Kinetic 12 | 10 2 . . Thermal 163 | . 88 26 49 Explosive . | . . . . Electromagnetic . | . . . . Robot Hit Streak 32 | 6 19 21 32 Robot Miss Streak 1 | 1 1 1 . Penetration Max . | . . . . Secondary Targets 4 | . 3 1 . Max Gunslinging Chain 1 | . 1 1 . Shots Hit Robots 131 | 9 69 22 31 Core Hits 53 | 4 28 12 9 Critical Kills . | . . . . Critical Parts Destroyed . | . . . . Critical Strikes 10 | . 3 5 2 Burn 10 | . 3 5 2 Melee Attacks . | . . . . Impact . | . . . . Slashing . | . . . . Piercing . | . . . . Sneak Attacks . | . . . . Combat Hostiles . | . . . . Follow-up Attacks . | . . . . Damage Inflicted 2101 | 106 995 356 644 Guns 2076 | 106 970 356 644 Cannons . | . . . . Explosions . | . . . . Melee . | . . . . Ramming 1 | . 1 . . Kinetic 129 | 106 23 . . Thermal 1971 | . 971 356 644 Explosive . | . . . . Electromagnetic . | . . . . Impact . | . . . . Slashing . | . . . . Piercing . | . . . . Highest Corruption . | . . . . Average Corruption . | . . . . Corruption Purged . | . . . . Corruption Blocked . | . . . . Overload Shots . | . . . . Overflow Damage . | . . . . Projectiles . | . . . . Explosions . | . . . . Melee . | . . . . Knockbacks . | . . . . Impact . | . . . . Kinetic . | . . . . Secondary . | . . . . Self-Inflicted Damage . | . . . . Shots . | . . . . Rammed . | . . . . Targets Rammed 1 | . 1 . . Kicked . | . . . . Crushed 1 | . 1 . . Highest Temperature 425 | . 425 135 73 Average Temperature 107 | . 131 58 23 Received Heat Transfer 705 | . 417 24 264 Effects 9 | . 9 . . Shutdowns 2 | . 2 . . Energy Bleed 2 | . 2 . . Interference 3 | . 3 . . Short Circuit 1 | . 1 . . Damage (minor) 1 | . 1 . . Siege Activations . | . . . . Martial Activations . | . . . . Shielding Activations . | . . . . Robots Disrupted . | . . . . Combat Hostiles . | . . . . Robots Corrupted . | . . . . Combat Hostiles . | . . . . Parts Fried . | . . . . Impact Corruptions . | . . . . Robots Melted 2 | . 2 . . Combat Hostiles 1 | . 1 . . Parts Melted 10 | . 7 . 3 Heat Transferred 5378 | . 2862 1221 1295 Parts Sabotaged . | . . . . Parts Stolen . | . . . . Parts Stripped . | . . . . Power Chain Reactions . | . . . . Alert | -11 -10 -10 -10 ------- Run | Yrd Mat Min Sub Maximum Alert Level . | . . . . Low Security (%) 100 | 100 100 100 . Level 1 . | . . . . Level 2 . | . . . . Level 3 . | . . . . Level 4 . | . . . . Level 5 . | . . . . High Security . | . . . . Max Security . | . . . . Peak Influence 85 | 5 85 51 . Initial . | . . . . Average 7 | 1 11 3 . Influence Increases 537 | 15 416 106 . Destroy 0b10 Robot/C 360 | . 280 80 . Destroy 0b10 Robot/NC 55 | 15 40 . . Destroy Leader 90 | . 70 20 . Allied During Kill 2 | . . 2 . Successful Hack 20 | . 20 . . Disable Machine 8 | . 4 4 . Destroy Structure 2 | . 2 . . Influence Decreases 537 | 15 416 106 . Time Decay 527 | 15 406 106 . Lost Part 10 | . 10 . . Squads Dispatched 4 | . 4 . . Investigation 4 | . 4 . . Extermination . | . . . . Reinforcement . | . . . . Assault . | . . . . Garrison . | . . . . Intercept . | . . . . Searches Triggered . | . . . . Construction Impeded . | . . . . Haulers Reinforced . | . . . . Active Scanning Responses . | . . . . Cargo Convoy Interrupts . | . . . . Stealth | -11 -10 -10 -10 --------- Run | Yrd Mat Min Sub Distress Signals 3 | . 3 . . Communications Jammed . | . . . . Distress Signals . | . . . . Times Spotted 38 | . 19 5 14 Peak Tracking Total 7 | . 6 2 7 Tactical Retreats . | . . . . Traps | -11 -10 -10 -10 ------- Run | Yrd Mat Min Sub Traps Triggered 2 | . 1 . 1 Indirectly . | . . . . Trap Hack Attempts . | . . . . Triggered . | . . . . Disarmed . | . . . . Reprogrammed . | . . . . Reused . | . . . . Traps Extracted . | . . . . Installed . | . . . . Triggered . | . . . . Machines | -11 -10 -10 -10 ---------- Run | Yrd Mat Min Sub Machines Disabled 2 | . 1 1 . Max in Single Turn 1 | . 1 1 . Machines Repaired . | . . . . Machines Dismantled . | . . . . Machines Sabotaged . | . . . . Overloaded Fab Kills . | . . . . Hacking | -11 -10 -10 -10 --------- Run | Yrd Mat Min Sub Machines Accessed 9 | . 7 . 2 Terminals 5 | . 5 . . Fabricators . | . . . . Repair Stations 1 | . 1 . . Recycling Units 1 | . 1 . . Scanalyzers . | . . . . Garrison Access . | . . . . Total Hacks 29 | . 23 . 6 Successful 14 | . 8 . 6 Failed 15 | . 15 . . Catastrophic 2 | . 2 . . Database Lockouts . | . . . . Manual 19 | . 19 . . Terminals 18 | . 18 . . Fabricators . | . . . . Repair Stations 3 | . 3 . . Recycling Units 2 | . 2 . . Scanalyzers . | . . . . Garrison Access . | . . . . Terminal Hacks 12 | . 6 . 6 Record 5 | . . . 5 Part Schematic 6 | . 6 . . Proto ID Catalog 1 | . . . 1 Fabricator Hacks . | . . . . Repair Station Hacks . | . . . . Recycling Unit Hacks 1 | . 1 . . Retrieve Components 1 | . 1 . . Scanalyzer . | . . . . Garrison Access Hacks . | . . . . Unauthorized Hacks 1 | . 1 . . Terminals . | . . . . Fabricators . | . . . . Repair Stations . | . . . . Recycling Units 1 | . 1 . . Reject 1 | . 1 . . Scanalyzers . | . . . . Garrison Access . | . . . . Data Cores Recovered . | . . . . Used . | . . . . Hacking Detections 6 | . 6 . . Full Trace Events 6 | . 6 . . Feedback Events . | . . . . Feedback Blocked . | . . . . Robot Schematics Acquired . | . . . . Robots Built . | . . . . Authchips . | . . . . Time . | . . . . Total Robot Build Rating . | . . . . Part Schematics Acquired 6 | . 6 . . Parts Built . | . . . . Authchips . | . . . . Time . | . . . . Total Part Build Rating . | . . . . Part Studies Acquired . | . . . . Parts Repaired . | . . . . Time . | . . . . Parts Recycled . | . . . . Recycled Matter . | . . . . Retrieved Matter . | . . . . Retrieved Components 7 | . 7 . . Parts Scanalyzed . | . . . . Part Schematics Acquired . | . . . . Parts Damaged . | . . . . Bothacking | -11 -10 -10 -10 ------------ Run | Yrd Mat Min Sub Used RIF Installer . | . . . . Robots Hacked . | . . . . Non-combat . | . . . . Combat . | . . . . Robot Hacks Applied . | . . . . Relay Couplers Released . | . . . . Fabnet Peak Effective % . | . . . . Robots Rewired . | . . . . Allies Hacked . | . . . . Hacks Repelled . | . . . . Allies | -11 -10 -10 -10 -------- Run | Yrd Mat Min Sub Total Allies 2 | . . 2 . Largest Group 2 | . . 2 2 Highest-Rated Group 42 | . . 42 42 Highest-Rated Ally 31 | . . 31 31 Total Orders . | . . . . Ally Attacks 11 | . . 1 10 Total Damage 128 | . . . 128 Kills 2 | . . . 2 Allies Corrupted . | . . . . Allies Melted . | . . . . Intel | -11 -10 -10 -10 ------- Run | Yrd Mat Min Sub Active Infowar (turns) 4369 | 78 1244 1122 1925 Sensors 1967 | . 1007 960 . Structural 2857 | 78 692 162 1925 Robot Analysis Total . | . . . . Derelict Logs Recovered 2 | . . 1 1 Drone Launches . | . . . . Drone Recoveries . | . . . . Exploration | -11 -10 -10 -10 ------------- Run | Yrd Mat Min Sub Turns Passed 4450 | 128 1275 1122 1925 Spaces Moved 2169 | 82 653 619 815 Core 39 | 38 . . 1 Treads 2130 | 44 653 619 814 Legs . | . . . . Wheels . | . . . . Hover . | . . . . Flight . | . . . . Fastest Speed 50 | 50 160 160 160 Average Speed 158 | 112 160 160 160 Slowest Speed 240 | 200 240 160 200 Overloaded Moves . | . . . . Propulsion Burnouts . | . . . . Robots Hopped . | . . . . Potential Cave-ins . | . . . . Cave-ins Triggered . | . . . . Exploration Rate (%) 63 | 6 93 100 53 Regions Visited 3 Branch Regions 2 Pre-discovered Areas 2 | . . 1 1 Known Exits Taken 3 | 1 1 1 . Unknown Exits Taken . | . . . . Scrap Searched 8 | . . 1 7 Spaces Dug 6 | . 2 . 4 Terrain Destroyed 6 | . 2 . 4 Melee . | . . . . Projectile 6 | . 2 . 4 AOE . | . . . . Terrain Rammed . | . . . . Walls Destroyed . | . . . . Machines Disabled . | . . . . Actions | -11 -10 -10 -10 --------- Run | Yrd Mat Min Sub Total 3004 | 107 780 729 1388 Wait 626 | . 16 72 538 Move 2166 | 81 652 618 815 Hop . | . . . . Pick Up 45 | 9 27 5 4 Fast Attach 3 | 1 2 . . Attach 13 | 6 6 . 1 Detach 2 | . 2 . . Swap 24 | . 12 10 2 Drop 29 | . 15 11 3 Fire 94 | 10 46 13 25 Melee . | . . . . Ram . | . . . . Kick . | . . . . Crush 1 | . 1 . . Escape Stasis . | . . . . Rewire 1 | . 1 . . Trap . | . . . . Miscellaneous . | . . . . Route ------- -11/Scrapyard -10/Materials (discovered 5 exits: *Mat x3 / *Min / *Sub) -10/Mines (discovered 3 exits: *Mat x2 / *Sub) -10/Subcaves History --------- Turn | Location | Event 8 | -11/Scrapyard | Identified exit to Materials 8 | -11/Scrapyard | Discovered exit to Materials (range 15) 129 | -11/Scrapyard | Entered Materials 129 | -10/Materials | Evolved 1 slot: Utility x1 160 | -10/Materials | Identified exit to Subcaves 160 | -10/Materials | Discovered exit to Subcaves (range 10) 310 | -10/Materials | Build established: Hacker-Mutant 391 | -10/Materials | Identified exit to Materials 391 | -10/Materials | Discovered exit to Materials (range 10) 728 | -10/Materials | Discovered exit to Materials (range 12) 824 | -10/Materials | Identified exit to Mines 824 | -10/Materials | Discovered exit to Mines (range 13) 1137 | -10/Materials | Discovered exit to Materials (range 13) 1404 | -10/Materials | Entered Mines 1529 | -10/Mines | Discovered exit to Materials (range 3) 1818 | -10/Mines | Joined a pair of Derelicts in attacking an 0b10 outpost 1954 | -10/Mines | Discovered exit to Subcaves (range 8) 1964 | -10/Mines | Discovered exit to Materials (range 3) 2240 | -10/Mines | Learned location of Storage (-7) 2526 | -10/Mines | Entered Subcaves 2526 | -10/Subcaves | Accompanied by 2 allies 2527 | -10/Subcaves | Approached by a straggling Scientist 2531 | -10/Subcaves | Led the pair of lost Derelicts to an unsafe place 2551 | -10/Subcaves | Core integrity fell below 50% 2638 | -10/Subcaves | Shifting Twisted Machinery released Multitool 2679 | -10/Subcaves | A swath of the cavern ceiling suddenly collapsed 2965 | -10/Subcaves | Build established: Scavenger-Mutant 3333 | -10/Subcaves | Learned Materials emergency access door positions 3382 | -10/Subcaves | Disturbed a concealed Subdweller 3533 | -10/Subcaves | A swath of the cavern ceiling suddenly collapsed 3973 | -10/Subcaves | Visited Clippyterm 3977 | -10/Subcaves | Learned location of Extension (-5) 3977 | -10/Subcaves | Learned Research machine intel 4301 | -10/Subcaves | Visited 4L-MR0's lab 4428 | -10/Subcaves | Ambushed by Subdweller buried in earth 4428 | -10/Subcaves | Ambushed by Subdweller buried in earth 4430 | -10/Subcaves | Ambushed by Subdweller buried in earth 4432 | -10/Subcaves | Ambushed by Subdweller buried in earth 4432 | -10/Subcaves | Ambushed by Subdweller buried in earth 4444 | -10/Subcaves | Core integrity fell below 20% 4451 | -10/Subcaves | Destroyed by WV-ZYB(R) with Subdweller Machine Gun Last Messages --------------- 04330_ Subatomizers dissect the Sub. Power Source. 04428_ EW-Z4I(g) destroyed. 04429_ L6-2MY(R): "GOODGOOD!" 04429_ WV-ZYB(R): "NOSTUCKSUB!" 04431_ BO-OPD(R): "ARGHSUB!" 04433_ SZ-WJX(R): "NAT20!" 04433_ 5C-2Y2(R): "GOODGOOD!" 04433_ CX-EX1(z) suffers critical hit (Destroy). 04437_ CX-EX1(z) destroyed. 04441_ Imp. Heat Sink destroyed. 04443_ Sub. Optics melted. 04443_ BO-OPD(R) destroyed. 04444_ Beamcaster destroyed. 04448_ The unstable cave ceiling collapses. 04448_ Lgt. Treads destroyed. 04449_ Lgt. Angular Momentum Engine destroyed. 04449_ Lgt. Treads destroyed. 04449_ Acquired Flamer. 04450_ Beamcaster destroyed. Map ----- +----------------------------------------------------+ | | | | | ?????????????????????????????????????????????????? | | ?????????????????????????????????????????????????? | | ?????????????????????????????????????????????????? | | ?????????????????????????????????????????????????? | | ?????????????????????????????????????????????????? | | ?????????????????????????????????????????????????? | | ?????????????????????????????????????????????????? | | ?????????????????????????????????????????????????? | | ?????????????????????????????????????????????????? | | ?????????????????????????????????????????????????? | | ?????????????????????????????????????????????????? | | ?????????????????????????????????????????????????? | | ?????????????????????????????????????????????????? | | ####?????????????????????????????????????????????? | | ########???#######???????????????????????????????? | | #######??###################???????????????????? | | ####?## #################????????????????? | | ###### #### ######???????????????? | | ##### ### # ###???????????????? | | ### ### ##???????????????? | | ### ## # ; ##???????????????? | | ### #;; ;###??????????????? | | ## R %R ;###??????????????? | | R *@ R ;# ?###??????????? | | % % ###?????????? | | ## # ! ##?????????? | | ###### ### ##; ; ?????????? | | ###### ## # ;; ?????????? | | ##### ## R ??????????? | | #### ## ### ??????????? | | ### ### ##### # ## ??????????? | | #### ### ####### R #####??????????? | | #### ## ###?#### ######??????????? | | ########? ####???## " ## ####?????????????? | | #######? ####????###" ## ###??????????????? | | ##??????###??????#### ?### ???????????????? | | ###?????????????????## ?### ????????????????? | | ###?????????????????#" ???? ???????????????????? | | ##?????????????????????""????????????????????????? | | #????????????????????????????????????????????????? | | ?????????????????????????????????????????????????? | | ?????????????????????????????????????????????????? | | ?????????????????????????????????????????????????? | | ?????????????????????????????????????????????????? | | ?????????????????????????????????????????????????? | | ?????????????????????????????????????????????????? | | ?????????????????????????????????????????????????? | | ?????????????????????????????????????????????????? | +----------------------------------------------------+ Best States ------------- Heat Dissipation 39 Energy Generation 18 Energy Capacity 250 Matter Stores 300 Matter Capacity 300 Sight Range 16 Robot Scan Range 14 Terrain Scan Density 10 Resistance: KI 35 Resistance: TH 35 Resistance: EX 35 Resistance: EM 35 Resistance: I 35 Resistance: S 35 Resistance: P 35 Evasion (%) 50 Recoil Reduction 2 Offensive Hacking 20 Item Schematics ----------------- Transport Network Coupler | -10/Materials | Hacked Tractor Beam | -10/Materials | Hacked Terrain Scanner | -10/Materials | Hacked Lgt. Treads | -10/Materials | Hacked Structural Scanner | -10/Materials | Hacked Sensor Array | -10/Materials | Hacked Robot Schematics ------------------ None Fabricated ------------ Nothing Repaired ---------- Nothing Studied --------- None Alien Tech Used ----------------- None Achievements -------------- None Challenges ------------ None Game ------ Seed ElectronModifiedMachine Manual? 0 Play Time 00:17:16 Cumulative 293.9 hours Start 2026.01.20 @ 12:14:54 End 2026.01.20 @ 12:31:37 Sessions 1 Manual Loads 0 Difficulty Explorer Special Mode None Game No. 455 Rogue 0 Adventurer 0 Explorer 455 Win Type - Total 0 Types 0/0/0/0/0/0/0/0/0/0 Lore% 76 Gallery% 70 Achievement% 55 Wizard Run 0 Options --------- Layout 1 ASCII 0 Keyboard 0 Movement Mouse Keybinds 1 Fullscreen 1 Font 24/Smallcaps Map View 50x35 Zoom Use 0% Tactical HUD 1 Map Filters NONE Filters NONE Steam 1 RUN: d02321cf-d293-4bf1-b8a5-e4dc2fe824bb